Cogmind - Beta 17 @@@ ROGUE MODE // 2026.06.28 @ 13:31:40 Player: Dull Result: Destroyed by HJ-UBI(R) with Subdweller Machine Gun Performance ------------- Evolutions (0) 0 Regions Visited (2) 400 Robots Destroyed (20) 100 Value Destroyed (636) 636 Prototype IDs (2) 40 Alien Tech Used (0) 0 Bonus (0) 0 TOTAL SCORE: 1176 Bonus ------- None Cogmind --------- Core Integrity 0/250 Matter 281/300 Energy 100/100 System Corruption 1% Temperature Cool (0) Movement Treading (240) Ox1 Location -10/Subcaves Parts ------- > --- POWER (1) -------- (None) > --- PROPULSION (2) --- Light Treads Light Treads > --- UTILITY (2) ------ High-capacity Storage Unit > --- WEAPON (2) ------- Assault Rifle Assault Rifle > --- INVENTORY (20) --- Ion Engine Light Treads Wheel Large Storage Unit Riot Gun Makeshift Laser Assault Rifle Light Assault Rifle Light Assault Rifle Light Assault Rifle Battle Rifle Grenade Launcher Grenade Launcher Grenade Launcher Grenade Launcher Mace Peak State ------------ > --- POWER ------------ Light Ion Engine > --- PROPULSION ------- Wheel Wheel > --- UTILITY ---------- Medium Storage Unit Terrain Scanner > --- WEAPON ----------- Assault Rifle Light Assault Rifle > --- INVENTORY -------- Ion Engine Light Treads Light Treads Wheel Wheel Light Assault Rifle Grenade Launcher Grenade Launcher Grenade Launcher Grenade Launcher [Rating: 8] Favorites ----------- Power Light Ion Engine Engine Light Ion Engine Propulsion Light Treads Treads Light Treads Leg Aluminum Leg Wheel Wheel Utility High-capacity Storage Unit Device Terrain Scanner Storage High-capacity Storage Unit Weapon Assault Rifle Ballistic Gun Assault Rifle Launcher Grenade Launcher Impact Weapon Mace Build | -11 -10 -10 ------- Run | Yrd Mat Sub Slots Evolved . | . . . Power . | . . . Propulsion . | . . . Utility . | . . . Weapon . | . . . Parts Attached 22 | 1 11 10 Power 2 | . . 2 Engine 2 | . . 2 Core . | . . . Reactor . | . . . Propulsion 9 | . 6 3 Treads 7 | . 4 3 Leg . | . . . Wheel 2 | . 2 . Hover . | . . . Flight . | . . . Utility 3 | . 3 . Device 1 | . 1 . Storage 2 | . 2 . Processor . | . . . Hackware . | . . . Protection . | . . . Artifact . | . . . Weapon 8 | 1 2 5 Energy Gun . | . . . Energy Cannon . | . . . Ballistic Gun 5 | 1 1 3 Ballistic Cannon . | . . . Launcher 2 | . 1 1 Special Weapon . | . . . Impact Weapon 1 | . . 1 Slashing Weapon . | . . . Piercing Weapon . | . . . Special Melee Weapon . | . . . Unidentified Prototypes . | . . . Parts Lost 8 | . . 8 Power 3 | . . 3 Propulsion 4 | . . 4 Utility . | . . . Weapon 1 | . . 1 Highest Loss Streak 2 | . . 2 To Critical Strikes . | . . . Average Backups 16 | 6 15 16 Power 2 | 1 2 1 Propulsion 4 | 4 4 4 Utility . | . . 1 Weapon 8 | 1 8 9 Tool/Special . | . . . Unused Backups 15 | . 4 11 Power 3 | . 1 2 Propulsion 2 | . 1 1 Utility 1 | . . 1 Weapon 9 | . 2 7 Tool/Special . | . . . Average Slot Usage (%) 87 | . 89 84 Engine 13 | . 14 13 Treads 25 | . 24 27 Wheel 1 | . 2 . Storage 16 | . 18 14 Ballistic Gun 27 | . 27 27 Peak Build Rating 8 | 6 8 8 Average Rating 7 | 6 7 7 On Entrance 6 | 6 6 8 Avg Prop Armor Cover (%) . | . . . Naked Turns . | . . . Heaviest Build 58 | 11 58 50 Greatest Support 40 | 20 40 40 Greatest Overweight (x) 2 | . 2 1 Average Overweight (x) . | . . 1 Largest Inventory Capacity 20 | 8 20 20 Average Capacity 18 | 8 18 20 Most Carried 20 | 6 20 20 Average Carried 16 | 6 15 16 Final Capacity 20 | 8 20 20 Final Carried 20 | 6 20 16 Class Distribution -------------------- 100% | Mutant Dominant Class ---------------- Mutant | -10/Materials Mutant | -10/Subcaves Resources | -11 -10 -10 ----------- Run | Yrd Mat Sub Matter Collected 899 | 176 318 405 Remotely . | . . . Salvage Created 735 | . 297 438 Parts 46 | . 22 24 Haulers Intercepted 2 | . 2 . Recyclers Shooed . | . . . Parts Field Recycled . | . . . Retrieved Matter . | . . . Parts Self-Destructed 14 | . . 14 Prevented . | . . . Parts Restored . | . . . Kills | -11 -10 -10 ------- Run | Yrd Mat Sub Combat Hostiles Destroyed 18 | . 7 11 Guns 15 | . 7 8 AOE 3 | . . 3 Classes Destroyed 5 | . 4 1 Hauler 2 | . 2 . Swarmer 3 | . 3 . Grunt 7 | . 3 4 Sentry 1 | . . 1 Subdweller 7 | . 1 6 Best Kill Streak 3 | . 3 3 Combat Bots Only 3 | . 3 3 Max Kills in Single Turn 1 | . 1 1 Gunslinging . | . . . Exploded 1 | . . 1 Melee . | . . . Uniques/NPCs Destroyed . | . . . Combat | -11 -10 -10 -------- Run | Yrd Mat Sub Hostile Shots Fired 105 | . 23 82 Missed 29 | . 9 20 Hits 76 | . 14 62 Projectile 76 | . 14 62 AOE 2 | . . 2 Critical Strikes 2 | . 1 1 Damage Taken 1460 | . 182 1278 Core 256 | . 25 231 Absorbed by Shields . | . . . Core Remaining (%) 100 | 100 . . Volleys Fired 87 | . 35 52 Largest 2 | . 2 2 Hottest 50 | . 50 50 Shots Fired 174 | . 70 104 Gun 166 | . 69 97 Cannon . | . . . Launcher 8 | . 1 7 Special . | . . . Kinetic 166 | . 69 97 Thermal . | . . . Explosive 8 | . 1 7 Electromagnetic . | . . . Robot Hit Streak 17 | . 10 17 Robot Miss Streak 3 | . 3 2 Penetration Max . | . . . Secondary Targets 2 | . 1 1 Max Gunslinging Chain 1 | . 1 1 Shots Hit Robots 123 | . 43 80 Core Hits 49 | . 19 30 Critical Kills . | . . . Critical Parts Destroyed . | . . . Critical Strikes . | . . . Melee Attacks 3 | . . 3 Impact 3 | . . 3 Slashing . | . . . Piercing . | . . . Sneak Attacks . | . . . Combat Hostiles . | . . . Follow-up Attacks . | . . . Damage Inflicted 1454 | . 435 1019 Guns 1235 | . 435 800 Cannons . | . . . Explosions 219 | . . 219 Melee . | . . . Ramming . | . . . Kinetic 1235 | . 435 800 Thermal . | . . . Explosive 219 | . . 219 Electromagnetic . | . . . Impact . | . . . Slashing . | . . . Piercing . | . . . Highest Corruption 1 | . 1 1 Average Corruption 1 | . 1 1 Corruption Purged . | . . . Corruption Blocked . | . . . Effects 26 | . 16 10 Message Errors 5 | . 3 2 Matter Fused 5 | . 3 2 Heat Flow Errors 6 | . 3 3 Energy Discharges 3 | . 2 1 Parts Rejected 1 | . 1 . Parts Fused 2 | . . 2 Data Loss (minor) 2 | . 2 . Data Loss (major) 2 | . 2 . Overload Shots . | . . . Overflow Damage . | . . . Projectiles . | . . . Explosions . | . . . Melee . | . . . Knockbacks . | . . . Impact . | . . . Kinetic . | . . . Secondary . | . . . Self-Inflicted Damage 4 | . . 4 Shots 1 | . . 1 Rammed . | . . . Targets Rammed . | . . . Kicked . | . . . Crushed . | . . . Highest Temperature 255 | . 255 249 Average Temperature 90 | . 85 106 Received Heat Transfer 294 | . 87 207 Siege Activations . | . . . Martial Activations . | . . . Shielding Activations . | . . . Robots Disrupted . | . . . Combat Hostiles . | . . . Robots Corrupted . | . . . Combat Hostiles . | . . . Parts Fried . | . . . Impact Corruptions . | . . . Robots Melted . | . . . Combat Hostiles . | . . . Parts Melted . | . . . Heat Transferred . | . . . Parts Sabotaged . | . . . Parts Stolen . | . . . Parts Stripped . | . . . Power Chain Reactions . | . . . Alert | -11 -10 -10 ------- Run | Yrd Mat Sub Maximum Alert Level . | . . . Low Security (%) 100 | 100 100 . Level 1 . | . . . Level 2 . | . . . Level 3 . | . . . Level 4 . | . . . Level 5 . | . . . High Security . | . . . Max Security . | . . . Peak Influence 70 | . 70 . Initial . | . . . Average 5 | . 5 . Influence Increases 309 | . 189 120 Destroy 0b10 Robot/C 220 | . 120 100 Destroy 0b10 Robot/NC 10 | . 10 . Destroy Leader 54 | . 34 20 Successful Hack 14 | . 14 . Destroy Structure 11 | . 11 . Influence Decreases 309 | . 189 120 Time Decay 297 | . 189 108 Lost Part 12 | . . 12 Squads Dispatched 1 | . 1 . Investigation 1 | . 1 . Extermination . | . . . Reinforcement . | . . . Assault . | . . . Garrison . | . . . Intercept . | . . . Searches Triggered . | . . . Construction Impeded . | . . . Haulers Reinforced . | . . . Active Scanning Responses . | . . . Cargo Convoy Interrupts . | . . . Stealth | -11 -10 -10 --------- Run | Yrd Mat Sub Distress Signals . | . . . Communications Jammed . | . . . Distress Signals . | . . . Times Spotted 35 | . 20 15 Peak Tracking Total 3 | . 3 3 Tactical Retreats . | . . . Traps | -11 -10 -10 ------- Run | Yrd Mat Sub Traps Triggered 3 | . 2 1 Indirectly . | . . . Trap Hack Attempts . | . . . Triggered . | . . . Disarmed . | . . . Reprogrammed . | . . . Reused . | . . . Traps Extracted . | . . . Installed . | . . . Triggered . | . . . Machines | -11 -10 -10 ---------- Run | Yrd Mat Sub Machines Disabled . | . . . Max in Single Turn . | . . . Machines Repaired . | . . . Machines Dismantled . | . . . Machines Sabotaged . | . . . Overloaded Fab Kills . | . . . Hacking | -11 -10 -10 --------- Run | Yrd Mat Sub Machines Accessed 6 | . 6 . Terminals 6 | . 6 . Fabricators . | . . . Repair Stations . | . . . Recycling Units . | . . . Scanalyzers . | . . . Garrison Access . | . . . Total Hacks 9 | . 9 . Successful 6 | . 6 . Failed 3 | . 3 . Catastrophic . | . . . Database Lockouts . | . . . Manual 2 | . 2 . Terminals 9 | . 9 . Fabricators . | . . . Repair Stations . | . . . Recycling Units . | . . . Scanalyzers . | . . . Garrison Access . | . . . Terminal Hacks 6 | . 6 . Prototype ID Bank 1 | . 1 . Emergency Access Points 1 | . 1 . Alert Level 3 | . 3 . Zone Layout 1 | . 1 . Fabricator Hacks . | . . . Repair Station Hacks . | . . . Recycling Unit Hacks . | . . . Scanalyzer . | . . . Garrison Access Hacks . | . . . Unauthorized Hacks . | . . . Terminals . | . . . Fabricators . | . . . Repair Stations . | . . . Recycling Units . | . . . Scanalyzers . | . . . Garrison Access . | . . . Data Cores Recovered . | . . . Used . | . . . Hacking Detections 4 | . 4 . Full Trace Events . | . . . Feedback Events . | . . . Feedback Blocked . | . . . Robot Schematics Acquired . | . . . Robots Built . | . . . Authchips . | . . . Time . | . . . Total Robot Build Rating . | . . . Part Schematics Acquired . | . . . Parts Built . | . . . Authchips . | . . . Time . | . . . Total Part Build Rating . | . . . Part Studies Acquired . | . . . Parts Repaired . | . . . Time . | . . . Parts Recycled . | . . . Recycled Matter . | . . . Retrieved Matter . | . . . Retrieved Components . | . . . Parts Scanalyzed . | . . . Part Schematics Acquired . | . . . Parts Damaged . | . . . Bothacking | -11 -10 -10 ------------ Run | Yrd Mat Sub Used RIF Installer . | . . . Robots Hacked . | . . . Non-combat . | . . . Combat . | . . . Robot Hacks Applied . | . . . Relay Couplers Released . | . . . Fabnet Peak Effective % . | . . . Robots Rewired . | . . . Allies Hacked . | . . . Hacks Repelled . | . . . Allies | -11 -10 -10 -------- Run | Yrd Mat Sub Total Allies . | . . . Largest Group . | . . . Highest-Rated Group . | . . . Highest-Rated Ally . | . . . Total Orders . | . . . Ally Attacks . | . . . Total Damage . | . . . Kills . | . . . Allies Corrupted . | . . . Allies Melted . | . . . Intel | -11 -10 -10 ------- Run | Yrd Mat Sub Active Infowar (turns) 28 | . 28 . Terrain 28 | . 28 . Robot Analysis Total . | . . . Derelict Logs Recovered . | . . . Drone Launches . | . . . Drone Recoveries . | . . . Exploration | -11 -10 -10 ------------- Run | Yrd Mat Sub Turns Passed 2964 | 2 1876 1086 Spaces Moved 1170 | 1 814 355 Core . | . . . Treads 988 | . 633 355 Legs 32 | 1 31 . Wheels 150 | . 150 . Hover . | . . . Flight . | . . . Fastest Speed 80 | 120 80 240 Average Speed 213 | 120 202 240 Slowest Speed 320 | 120 320 240 Overloaded Moves . | . . . Propulsion Burnouts . | . . . Robots Hopped . | . . . Potential Cave-ins . | . . . Cave-ins Triggered . | . . . Exploration Rate (%) 41 | 2 99 24 Regions Visited 2 Branch Regions 1 Pre-discovered Areas . | . . . Known Exits Taken . | . . . Unknown Exits Taken 2 | 1 1 . Scrap Searched 8 | . . 8 Spaces Dug 11 | . 11 . Terrain Destroyed 38 | . 11 27 Melee . | . . . Projectile . | . . . AOE 38 | . 11 27 Terrain Rammed . | . . . Walls Destroyed . | . . . Machines Disabled . | . . . Actions | -11 -10 -10 --------- Run | Yrd Mat Sub Total 1469 | 1 986 482 Wait 148 | . 93 55 Move 1168 | . 813 355 Hop . | . . . Pick Up 25 | . 22 3 Fast Attach 4 | . 4 . Attach 11 | . 4 7 Detach . | . . . Swap 11 | 1 3 7 Drop 12 | . 12 . Fire 87 | . 35 52 Melee 3 | . . 3 Ram . | . . . Kick . | . . . Crush . | . . . Escape Stasis . | . . . Rewire . | . . . Trap . | . . . Miscellaneous . | . . . Route ------- -11/Scrapyard -10/Materials (discovered 6 exits: [*Mat x3] / [*Min x2] / [*Sub]) -10/Subcaves (discovered 1 exit: [*Mat]) History --------- Turn | Location | Event 3 | -11/Scrapyard | Discovered new exit (range 0) 3 | -11/Scrapyard | Entered Materials 292 | -10/Materials | Discovered new exit (range 12) 300 | -10/Materials | Build established: Mutant 899 | -10/Materials | Discovered new exit (range 7) 903 | -10/Materials | Derelicts attacked the area 1452 | -10/Materials | Discovered new exit (range 10) 1466 | -10/Materials | Discovered new exit (range 13) 1541 | -10/Materials | Discovered new exit (range 5) 1620 | -10/Materials | Discovered new exit (range 7) 1879 | -10/Materials | Entered Subcaves 1880 | -10/Subcaves | Approached by a straggling Scientist 2133 | -10/Subcaves | Core integrity fell below 50% 2192 | -10/Subcaves | Discovered new exit (range 8) 2325 | -10/Subcaves | Shifting Twisted Machinery released Sub. Laser 2531 | -10/Subcaves | Core integrity fell below 20% 2892 | -10/Subcaves | Shifting Twisted Machinery released Sub. Laser 2954 | -10/Subcaves | A Subdweller sparked back to life 2965 | -10/Subcaves | Destroyed by HJ-UBI(R) with Subdweller Machine Gun Last Messages --------------- 02678_ Found Sub. Machine Gun. 02678_ Found 54 Matter. 02681_ Subatomizers dissect the Mak. Laser. 02681_ Searching scrap... 02681_ Found Sub. Monowheel. 02681_ Found 43 Matter. 02686_ System corrupted: Heat flow error (+174). 02693_ Acquired Mak. Laser. 02816_ System corrupted: Ion Engine fused. Sub. Laser falls loose from the Twisted Machinery. 02904_ Lgt. Treads destroyed. 02909_ Y-45 Defender destroyed. 02913_ Imp. Ion Engine fries itself beyond repair. 02917_ Heat Sink fries itself beyond repair. 02918_ Acquired 29 matter. 02954_ HJ-UBI(R) creaks and sparks as it begins to move. 02961_ Ion Engine destroyed. Map ----- +----------------------------------------------------+ | ?????????????????????????????????????????????????? | | ?????????????????????????????????????????????????? | | ?????????????????????????????????????????????????? | | ?????????????????????????????????????????????????? | | ?????????????????????????????????????????????????? | | ?????????????????????????????????????????????????? | | ?????????????????????????????????????????????????? | | ?????????????????????????????????????????????????? | | ?????????????????????????????????????????????????? | | ?????????????????????????????????????????????????? | | ?????????????????????????????????????????????????? | | ?????????????????????????????????????????????????? | | ?????????????????????????????????????????????????? | | ?????????????????????????????????????????????????? | | ?????????????????????????????????????????????????? | | ?????????????????????????????????????????????????? | | ?????????????????????????????????????????????? ??? | | ?????????????????????????????????????????????? #?? | | ?????????????????????????????????????????????? ?? | | ?????????????????????????????????????????????? ?? | | ?????????????????????????????????????????????? ?? | | ????????????????????####??####"##??????###???? ?? | | ??????????##?######?# ####&" #?????## #??? #? | | ??????? ## ## " ### "##" < #????##% #### #? | | ??????? " ## "" #